Workbook

Sheet History
G2: More Resources needed
B3: Description | C3: Version | D3: Date | E3: Author | G3: The standard starts with 3 resources that can be planned, if you need more resources you should adjust the sheet by adding more koloms as already exist for a resource and ad more resource on the Resource sheet
B5: First Draft | C5: 0.1 | D5: 2014-03-14 | E5: R.Vriendts
B6: Minor counting errors | C6: 0.2 | D6: 2014-03-16 | E6: R.Vriendts
B7: First Version | C7: 0.3 | D7: 2014-03-18 | E7: R.Vriendts
B8: Total Overview added | C8: 0.4 | D8: 2017-03-19 | E8: R.Vriendts
B9: Changes added | C9: 1.0 | D9: 2018-04-05 | E9: R.Vriendts
B11: Password Sheet | C11: Planning
G12: Help for koloms
G13: Planned | H13: Here you fill in the planned hours or cost
G14: Actual | H14: Here you fill in the actual spend hours or cost
G15: Deviation | H15: This is the difference between what is planned and what is used

Sheet Resouce
A4: No. | B4: Resource | C4: HourRate
A5: 1 | B5: Network | C5: € 55.00
A6: 2 | B6: Development | C6: € 65.00
A7: 3 | B7: PM | C7: € 100.00
A8: 4 | B8: Johnson | C8: € 75.00
A9: 5 | B9: Hendriksen | C9: € 67.00
A10: 6 | B10: Latuare | C10: € 71.00
A11: 7 | B11: Philips | C11: € 80.00
A12: 8 | B12: Dundy | C12: € 85.00

Sheet Project Planning
A2: Date last update | D2: 2016-01-12
D4: Planning | H4: =Resouce!B5 -> Network | P4: =Resouce!B6 -> Development | X4: =Resouce!B7 -> PM | AF4: Total Resource Cost | AM4: Fixed Cost (OOTP) | AQ4: Operational Cost | AU4: Project Totals
A5: Task# | B5: Description | C5: After Task# | D5: Start Date | E5: Days | F5: End Date | H5: Planned Hours | I5: Actual Hours | J5: Hour Rate | K5: Planned Resouce Cost | L5: Actual Resource Cost | M5: Variance | N5: Variance Resource Cost | P5: Planned Hours | Q5: Actual Hours | R5: Hour Rate | S5: Planned Resouce Cost | T5: Actual Resource Cost | U5: Variance | V5: Variance Resource Cost | X5: Planned Hours | Y5: Actual Hours | Z5: Hour Rate | AA5: Planned Resouce Cost | AB5: Actual Resource Cost | AC5: Variance | AD5: Variance Resource Cost | AF5: Planned Resource Total Hours | AG5: Planned Resource Total Cost | AH5: Actual Resource Total Hours | AI5: Actual Resource Total Cost | AJ5: Variance Hours | AK5: Variance Cost | AM5: Planned Cost | AN5: Actual Cost | AO5: Variance Cost | AQ5: Planned Cost | AR5: Actual Cost | AS5: Variance Cost | AU5: Project Planned | AV5: Project Actuals | AW5: Project Variance
A6: 0 | B6: Test Project | D6: 2016-01-01 | E6: =E7+E27 -> 84.0 | F6: =D6+E6 -> 2016-03-25 | H6: =H7+H27 -> 34.0 | I6: =I7+I27 -> 0.0 | K6: =K7+K27 -> € 1,870.00 | L6: =L7+L27 -> 0 | M6: =M7+M27 -> 34.0 | N6: =N7+N27 -> € 1,870.00 | P6: =P7+P27 -> 0.0 | Q6: =Q7+Q27 -> 0.0 | S6: =S7+S27 -> 0 | T6: =T7+T27 -> 0 | U6: =U7+U27 -> 0.0 | V6: =V7+V27 -> 0 | X6: =X7+X27 -> 137.0 | Y6: =Y7+Y27 -> 24.0 | AA6: =AA7+AA27 -> € 13,700.00 | AB6: =AB7+AB27 -> € 2,400.00 | AC6: =AC7+AC27 -> 113.0 | AD6: =AD7+AD27 -> € 11,300.00 | AF6: =H6+P6+X6 -> 171.0 | AG6: =K6+S6+AA6 -> € 15,570.00 | AH6: =I6+Q6+Y6 -> 24.0 | AI6: =L6+T6+AB6 -> € 2,400.00 | AJ6: 147.0 | AK6: € 13,170.00 | AM6: =AM7+AM27 -> 0 | AN6: =AN7+AN27 -> 0 | AO6: =AM6-AN6 -> 0 | AQ6: =AQ7+AQ27 -> 0 | AR6: =AR7+AR27 -> 0 | AS6: =AQ6-AR6 -> 0 | AU6: =AG6+AM6+AQ6 -> € 15,570.00 | AV6: =AI6+AN6+AR6 -> € 2,400.00 | AW6: =AU6-AV6 -> € 13,170.00
B7: Introduction | D7: =D8 -> 2016-02-17 | E7: =E19 -> 3.0 | F7: =D7+E7 -> 2016-02-20 | H7: =H19+H26 -> 12.0 | I7: =I19+I26 -> 0.0 | K7: =K19+K26 -> € 660.00 | L7: =L19+L26 -> 0 | M7: =M19+M26 -> 12.0 | N7: =N19+N26 -> € 660.00 | P7: =P19+P26 -> 0.0 | Q7: =Q19+Q26 -> 0.0 | S7: =S19+S26 -> 0 | T7: =T19+T26 -> 0 | U7: =U19+U26 -> 0.0 | V7: =V19+V26 -> 0 | X7: =X19+X26 -> 64.0 | Y7: =Y19+Y26 -> 24.0 | AA7: =AA19+AA26 -> € 6,400.00 | AB7: =AB19+AB26 -> € 2,400.00 | AC7: =AC19+AC26 -> 40.0 | AD7: =AD19+AD26 -> € 4,000.00 | AF7: =H7+P7+X7 -> 76.0 | AG7: =K7+S7+AA7 -> € 7,060.00 | AH7: =I7+Q7+Y7 -> 24.0 | AI7: € 2,400.00 | AJ7: 52.0 | AK7: € 4,660.00 | AM7: =AM19+AM26 -> 0 | AN7: =AN19+AN26 -> 0 | AO7: =AM7-AN7 -> 0 | AQ7: =AQ19+AQ26 -> 0 | AR7: =AR19+AR26 -> 0 | AS7: =AQ7-AR7 -> 0 | AU7: =AG7+AM7+AQ7 -> € 7,060.00 | AV7: =AI7+AN7+AR7 -> € 2,400.00 | AW7: =AU7-AV7 -> € 4,660.00
B8: Obtain Project Knowledge | D8: =D9 -> 2016-02-17 | E8: =E19 -> 3.0 | F8: =(D8+E8)-1 -> 2016-02-19
A9: 1 | B9: Intro Person 1 | C9: 0 | D9: 2016-02-17 | E9: 0.2 | F9: 2016-02-17 | H9: 1.0 | I9: 0.0 | J9: =Resouce!$C$5 -> € 55.00 | K9: =J9*H9 -> € 55.00 | L9: =I9*J9 -> 0 | M9: =H9-I9 -> 1.0 | N9: =K9-L9 -> € 55.00 | P9: 0.0 | Q9: 0.0 | R9: =Resouce!$C$5 -> € 55.00 | S9: =R9*P9 -> 0 | T9: =Q9*R9 -> 0 | U9: =P9-Q9 -> 0.0 | V9: =S9-T9 -> 0 | X9: 1.0 | Y9: 1.0 | Z9: =Resouce!$C$7 -> € 100.00 | AA9: =Z9*X9 -> € 100.00 | AB9: =Y9*Z9 -> € 100.00 | AC9: =X9-Y9 -> 0.0 | AD9: =AA9-AB9 -> 0 | AF9: =H9+P9+X9 -> 2.0 | AG9: =K9+S9+AA9 -> € 155.00 | AH9: =I9+Q9+Y9 -> 1.0 | AI9: =L9+T9+AB9 -> € 100.00 | AJ9: =M9+U9+AC9 -> 1.0 | AK9: =N9+V9+AD9 -> € 55.00 | AM9: 0 | AN9: 0 | AO9: =AM9-AN9 -> 0 | AQ9: 0 | AR9: 0 | AS9: =AQ9-AR9 -> 0 | AU9: =AG9+AM9+AQ9 -> € 155.00 | AV9: =AI9+AN9+AR9 -> € 100.00 | AW9: =AU9-AV9 -> € 55.00
A10: =A9+1 -> 2 | B10: Intro Persion 2 | C10: 0 | D10: =F9 -> 2016-02-17 | E10: 0.4 | F10: =D10+E10 -> 2016-02-17T09:36:00 | H10: 2.0 | I10: 0.0 | J10: =Resouce!$C$5 -> € 55.00 | K10: =J10*H10 -> € 110.00 | L10: =I10*J10 -> 0 | M10: =H10-I10 -> 2.0 | N10: =K10-L10 -> € 110.00 | P10: 0.0 | Q10: 0.0 | R10: =Resouce!$C$5 -> € 55.00 | S10: =R10*P10 -> 0 | T10: =Q10*R10 -> 0 | U10: =P10-Q10 -> 0.0 | V10: =S10-T10 -> 0 | X10: 3.0 | Y10: 3.0 | Z10: =Resouce!$C$7 -> € 100.00 | AA10: =Z10*X10 -> € 300.00 | AB10: =Y10*Z10 -> € 300.00 | AC10: =X10-Y10 -> 0.0 | AD10: =AA10-AB10 -> 0 | AF10: =H10+P10+X10 -> 5.0 | AG10: =K10+S10+AA10 -> € 410.00 | AH10: =I10+Q10+Y10 -> 3.0 | AI10: =L10+T10+AB10 -> € 300.00 | AJ10: =M10+U10+AC10 -> 2.0 | AK10: =N10+V10+AD10 -> € 110.00 | AM10: 0 | AN10: 0 | AO10: =AM10-AN10 -> 0 | AQ10: 0 | AR10: 0 | AS10: =AQ10-AR10 -> 0 | AU10: =AG10+AM10+AQ10 -> € 410.00 | AV10: =AI10+AN10+AR10 -> € 300.00 | AW10: =AU10-AV10 -> € 110.00
A11: =A10+1 -> 3 | B11: Intro Person 3 | C11: 0 | D11: =F10 -> 2016-02-17T09:36:00 | E11: 0.4 | F11: 2016-02-17T19:12:00 | H11: 3.0 | I11: 0.0 | J11: =Resouce!$C$5 -> € 55.00 | K11: € 165.00 | L11: 0 | M11: 3.0 | N11: € 165.00 | P11: 0.0 | Q11: 0.0 | R11: =Resouce!$C$5 -> € 55.00 | S11: 0 | T11: 0 | U11: 0.0 | V11: 0 | X11: 4.0 | Y11: 4.0 | Z11: =Resouce!$C$7 -> € 100.00 | AA11: € 400.00 | AB11: € 400.00 | AC11: 0.0 | AD11: 0 | AF11: 7.0 | AG11: € 565.00 | AH11: 4.0 | AI11: € 400.00 | AJ11: 3.0 | AK11: € 165.00 | AM11: 0 | AN11: 0 | AO11: 0 | AQ11: 0 | AR11: 0 | AS11: 0 | AU11: € 565.00 | AV11: € 400.00 | AW11: € 165.00
A12: 4 | B12: Intro Person 4 | C12: 3 | D12: 2016-02-18 | E12: 0.2 | F12: 2016-02-18T04:48:00 | H12: 2.0 | I12: 0.0 | J12: =Resouce!$C$5 -> € 55.00 | K12: € 110.00 | L12: 0 | M12: 2.0 | N12: € 110.00 | P12: 0.0 | Q12: 0.0 | R12: =Resouce!$C$5 -> € 55.00 | S12: 0 | T12: 0 | U12: 0.0 | V12: 0 | X12: 1.0 | Y12: 1.0 | Z12: =Resouce!$C$7 -> € 100.00 | AA12: € 100.00 | AB12: € 100.00 | AC12: 0.0 | AD12: 0 | AF12: 3.0 | AG12: € 210.00 | AH12: 1.0 | AI12: € 100.00 | AJ12: 2.0 | AK12: € 110.00 | AM12: 0 | AN12: 0 | AO12: 0 | AQ12: 0 | AR12: 0 | AS12: 0 | AU12: € 210.00 | AV12: € 100.00 | AW12: € 110.00
A13: 5 | B13: Resarch Documents | C13: 4 | D13: =F12 -> 2016-02-18T04:48:00 | E13: 0.7 | F13: 2016-02-18T21:36:00 | H13: 1.0 | I13: 0.0 | J13: =Resouce!$C$5 -> € 55.00 | K13: € 55.00 | L13: 0 | M13: 1.0 | N13: € 55.00 | P13: 0.0 | Q13: 0.0 | R13: =Resouce!$C$5 -> € 55.00 | S13: 0 | T13: 0 | U13: 0.0 | V13: 0 | X13: 6.0 | Y13: 6.0 | Z13: =Resouce!$C$7 -> € 100.00 | AA13: € 600.00 | AB13: € 600.00 | AC13: 0.0 | AD13: 0 | AF13: 7.0 | AG13: € 655.00 | AH13: 6.0 | AI13: € 600.00 | AJ13: 1.0 | AK13: € 55.00 | AM13: 0 | AN13: 0 | AO13: 0 | AQ13: 0 | AR13: 0 | AS13: 0 | AU13: € 655.00 | AV13: € 600.00 | AW13: € 55.00
A14: 6 | B14: Conf Call Management | C14: 5 | D14: =F13 -> 2016-02-18T21:36:00 | E14: 0.1 | F14: 2016-02-19 | H14: 1.0 | I14: 0.0 | J14: =Resouce!$C$5 -> € 55.00 | K14: € 55.00 | L14: 0 | M14: 1.0 | N14: € 55.00 | P14: 0.0 | Q14: 0.0 | R14: =Resouce!$C$5 -> € 55.00 | S14: 0 | T14: 0 | U14: 0.0 | V14: 0 | X14: 1.0 | Y14: 1.0 | Z14: =Resouce!$C$7 -> € 100.00 | AA14: € 100.00 | AB14: € 100.00 | AC14: 0.0 | AD14: 0 | AF14: 2.0 | AG14: € 155.00 | AH14: 1.0 | AI14: € 100.00 | AJ14: 1.0 | AK14: € 55.00 | AM14: 0 | AN14: 0 | AO14: 0 | AQ14: 0 | AR14: 0 | AS14: 0 | AU14: € 155.00 | AV14: € 100.00 | AW14: € 55.00
A15: 7 | B15: Check Infra structure | C15: 6 | D15: =F14+1 -> 2016-02-20 | E15: 0.3 | F15: =D15 -> 2016-02-20 | X15: 2.0 | Y15: 2.0 | Z15: =Resouce!$C$7 -> € 100.00 | AA15: =Z15*X15 -> € 200.00 | AB15: =Y15*Z15 -> € 200.00 | AC15: =X15-Y15 -> 0.0 | AD15: =AA15-AB15 -> 0 | AF15: =H15+P15+X15 -> 2.0 | AG15: =K15+S15+AA15 -> € 200.00 | AH15: =I15+Q15+Y15 -> 2.0 | AI15: =L15+T15+AB15 -> € 200.00 | AJ15: =M15+U15+AC15 -> 0.0 | AK15: =N15+V15+AD15 -> 0 | AM15: 0 | AN15: 0 | AO15: =AM15-AN15 -> 0 | AQ15: 0 | AR15: 0 | AS15: =AQ15-AR15 -> 0 | AU15: =AG15+AM15+AQ15 -> € 200.00 | AV15: =AI15+AN15+AR15 -> € 200.00 | AW15: =AU15-AV15 -> 0
A16: 8 | B16: Aquire information | C16: 7 | D16: 2016-02-19 | E16: 0.3 | F16: =D16 -> 2016-02-19 | X16: 2.0 | Y16: 2.0 | Z16: =Resouce!$C$7 -> € 100.00 | AA16: € 200.00 | AB16: € 200.00 | AC16: 0.0 | AD16: 0 | AF16: 2.0 | AG16: € 200.00 | AH16: 2.0 | AI16: € 200.00 | AJ16: 0.0 | AK16: 0 | AM16: 0 | AN16: 0 | AO16: 0 | AQ16: 0 | AR16: 0 | AS16: 0 | AU16: € 200.00 | AV16: € 200.00 | AW16: 0
A17: 9 | B17: Send Out invites | C17: 8 | D17: 2016-02-19 | E17: 0.2 | F17: =D17 -> 2016-02-19 | X17: 1.0 | Y17: 1.0 | Z17: =Resouce!$C$7 -> € 100.00 | AA17: € 100.00 | AB17: € 100.00 | AC17: 0.0 | AD17: 0 | AF17: 1.0 | AG17: € 100.00 | AH17: 1.0 | AI17: € 100.00 | AJ17: 0.0 | AK17: 0 | AM17: 0 | AN17: 0 | AO17: 0 | AQ17: 0 | AR17: 0 | AS17: 0 | AU17: € 100.00 | AV17: € 100.00 | AW17: 0
A18: 10 | B18: Setup Document system | C18: 9 | D18: 2016-02-19 | E18: 0.2 | F18: 2016-02-19 | X18: 3.0 | Y18: 3.0 | Z18: =Resouce!$C$7 -> € 100.00 | AA18: € 300.00 | AB18: € 300.00 | AC18: 0.0 | AD18: 0 | AF18: 3.0 | AG18: € 300.00 | AH18: 3.0 | AI18: € 300.00 | AJ18: 0.0 | AK18: 0 | AM18: 0 | AN18: 0 | AO18: 0 | AQ18: 0 | AR18: 0 | AS18: 0 | AU18: € 300.00 | AV18: € 300.00 | AW18: 0
B19: Sub Total | E19: =SUM(E9:E18) -> 3.0 | H19: =SUM(H9:H18) -> 10.0 | I19: =SUM(I9:I18) -> 0.0 | K19: =SUM(K9:K18) -> € 550.00 | L19: =SUM(L9:L18) -> 0 | M19: =SUM(M9:M18) -> 10.0 | N19: =SUM(N9:N18) -> € 550.00 | P19: =SUM(P9:P18) -> 0.0 | Q19: =SUM(Q9:Q18) -> 0.0 | S19: =SUM(S9:S18) -> 0 | T19: =SUM(T9:T18) -> 0 | U19: =SUM(U9:U18) -> 0.0 | V19: =SUM(V9:V18) -> 0 | X19: =SUM(X9:X18) -> 24.0 | Y19: =SUM(Y9:Y18) -> 24.0 | AA19: =SUM(AA9:AA18) -> € 2,400.00 | AB19: € 2,400.00 | AC19: 0.0 | AD19: 0 | AE19: 0.0 | AF19: 34.0 | AG19: € 2,950.00 | AH19: 24.0 | AI19: € 2,400.00 | AJ19: 10.0 | AK19: € 550.00 | AL19: 0.0 | AM19: 0 | AN19: 0 | AO19: 0 | AP19: 0 | AQ19: 0 | AR19: 0 | AS19: 0 | AT19: 0.0 | AU19: € 2,950.00 | AV19: € 2,400.00 | AW19: € 550.00
B20: Get Resource involvement | D20: =F18+E19 -> 2016-02-22 | E20: =E26 -> 5.0 | F20: =E20+D20 -> 2016-02-27
A21: 11 | B21: Various Mngt Meetings | C21: 10 | D21: =D20 -> 2016-02-22 | E21: 2.5 | F21: =D21+E21 -> 2016-02-24T12:00:00 | H21: 0.0 | I21: 0.0 | J21: =Resouce!$C$5 -> € 55.00 | K21: =J21*H21 -> 0 | L21: =I21*J21 -> 0 | M21: =H21-I21 -> 0.0 | N21: =K21-L21 -> 0 | P21: 0.0 | Q21: 0.0 | R21: =Resouce!$C$5 -> € 55.00 | S21: =R21*P21 -> 0 | T21: =Q21*R21 -> 0 | U21: =P21-Q21 -> 0.0 | V21: =S21-T21 -> 0 | X21: 20.0 | Y21: 0.0 | Z21: =Resouce!$C$7 -> € 100.00 | AA21: =Z21*X21 -> € 2,000.00 | AB21: =Y21*Z21 -> 0 | AC21: =X21-Y21 -> 20.0 | AD21: =AA21-AB21 -> € 2,000.00 | AF21: =H21+P21+X21 -> 20.0 | AG21: =K21+S21+AA21 -> € 2,000.00 | AH21: =I21+Q21+Y21 -> 0.0 | AI21: =L21+T21+AB21 -> 0 | AJ21: =M21+U21+AC21 -> 20.0 | AK21: =N21+V21+AD21 -> € 2,000.00 | AM21: 0 | AN21: 0 | AO21: =AM21-AN21 -> 0 | AQ21: 0 | AR21: 0 | AS21: =AQ21-AR21 -> 0 | AU21: =AG21+AM21+AQ21 -> € 2,000.00 | AV21: =AI21+AN21+AR21 -> 0 | AW21: =AU21-AV21 -> € 2,000.00
A22: 12 | B22: Create Planning | C22: 10 | D22: =D21 -> 2016-02-22 | E22: 0.5 | F22: 2016-02-26 | H22: 0.0 | I22: 0.0 | J22: =Resouce!$C$5 -> € 55.00 | K22: =J22*H22 -> 0 | L22: =I22*J22 -> 0 | M22: =H22-I22 -> 0.0 | N22: =K22-L22 -> 0 | P22: 0.0 | Q22: 0.0 | R22: =Resouce!$C$5 -> € 55.00 | S22: =R22*P22 -> 0 | T22: =Q22*R22 -> 0 | U22: =P22-Q22 -> 0.0 | V22: =S22-T22 -> 0 | X22: 4.0 | Y22: 0.0 | Z22: =Resouce!$C$7 -> € 100.00 | AA22: =Z22*X22 -> € 400.00 | AB22: =Y22*Z22 -> 0 | AC22: =X22-Y22 -> 4.0 | AD22: =AA22-AB22 -> € 400.00 | AF22: 4.0 | AG22: € 400.00 | AH22: 0.0 | AI22: 0 | AJ22: 4.0 | AK22: € 400.00 | AM22: 0 | AN22: 0 | AO22: =AM22-AN22 -> 0 | AQ22: 0 | AR22: 0 | AS22: =AQ22-AR22 -> 0 | AU22: =AG22+AM22+AQ22 -> € 400.00 | AV22: =AI22+AN22+AR22 -> 0 | AW22: =AU22-AV22 -> € 400.00
A23: 13 | B23: Update System | C23: 10 | D23: =D22 -> 2016-02-22 | E23: 0.5 | F23: 2016-02-26 | H23: 1.0 | I23: 0.0 | J23: =Resouce!$C$5 -> € 55.00 | K23: € 55.00 | L23: 0 | M23: 1.0 | N23: € 55.00 | P23: 0.0 | Q23: 0.0 | R23: =Resouce!$C$5 -> € 55.00 | S23: 0 | T23: 0 | U23: 0.0 | V23: 0 | X23: 4.0 | Y23: 0.0 | Z23: =Resouce!$C$7 -> € 100.00 | AA23: € 400.00 | AB23: 0 | AC23: 4.0 | AD23: € 400.00 | AF23: 5.0 | AG23: € 455.00 | AH23: 0.0 | AI23: 0 | AJ23: 5.0 | AK23: € 455.00 | AM23: 0 | AN23: 0 | AO23: 0 | AQ23: 0 | AR23: 0 | AS23: 0 | AU23: € 455.00 | AV23: 0 | AW23: € 455.00
A24: =A23+1 -> 14 | B24: Create BC and Finance | C24: 10 | D24: =D23 -> 2016-02-22 | E24: 1.0 | F24: 2016-02-26 | H24: 0.0 | I24: 0.0 | J24: =Resouce!$C$5 -> € 55.00 | K24: 0 | L24: 0 | M24: 0.0 | N24: 0 | P24: 0.0 | Q24: 0.0 | R24: =Resouce!$C$5 -> € 55.00 | S24: 0 | T24: 0 | U24: 0.0 | V24: 0 | X24: 8.0 | Y24: 0.0 | Z24: =Resouce!$C$7 -> € 100.00 | AA24: € 800.00 | AB24: 0 | AC24: 8.0 | AD24: € 800.00 | AF24: 8.0 | AG24: € 800.00 | AH24: 0.0 | AI24: 0 | AJ24: 8.0 | AK24: € 800.00 | AM24: 0 | AN24: 0 | AO24: 0 | AQ24: 0 | AR24: 0 | AS24: 0 | AU24: € 800.00 | AV24: 0 | AW24: € 800.00
A25: 15 | B25: Conf Call Management | C25: 10 | D25: 2016-02-23 | E25: 0.5 | F25: =D25+E25 -> 2016-02-23T12:00:00 | H25: 1.0 | I25: 0.0 | J25: =Resouce!$C$5 -> € 55.00 | K25: € 55.00 | L25: 0 | M25: 1.0 | N25: € 55.00 | P25: 0.0 | Q25: 0.0 | R25: =Resouce!$C$5 -> € 55.00 | S25: 0 | T25: 0 | U25: 0.0 | V25: 0 | X25: 4.0 | Y25: 0.0 | Z25: =Resouce!$C$7 -> € 100.00 | AA25: € 400.00 | AB25: 0 | AC25: 4.0 | AD25: € 400.00 | AF25: 5.0 | AG25: € 455.00 | AH25: 0.0 | AI25: 0 | AJ25: 5.0 | AK25: € 455.00 | AM25: 0 | AN25: 0 | AO25: 0 | AQ25: 0 | AR25: 0 | AS25: 0 | AU25: € 455.00 | AV25: 0 | AW25: € 455.00
B26: Sub Total | E26: =SUM(E21:E25) -> 5.0 | H26: =SUM(H21:H25) -> 2.0 | I26: =SUM(I21:I25) -> 0.0 | K26: =SUM(K21:K25) -> € 110.00 | L26: =SUM(L21:L25) -> 0 | M26: =SUM(M21:M25) -> 2.0 | N26: =SUM(N21:N25) -> € 110.00 | P26: =SUM(P21:P25) -> 0.0 | Q26: =SUM(Q21:Q25) -> 0.0 | S26: =SUM(S21:S25) -> 0 | T26: =SUM(T21:T25) -> 0 | U26: =SUM(U21:U25) -> 0.0 | V26: =SUM(V21:V25) -> 0 | X26: =SUM(X21:X25) -> 40.0 | Y26: =SUM(Y21:Y25) -> 0.0 | AA26: =SUM(AA21:AA25) -> € 4,000.00 | AB26: =SUM(AB21:AB25) -> 0 | AC26: =SUM(AC21:AC25) -> 40.0 | AD26: =SUM(AD21:AD25) -> € 4,000.00 | AF26: =SUM(AF21:AF25) -> 42.0 | AG26: =K26+S26+AA26 -> € 4,110.00 | AH26: =SUM(AH21:AH25) -> 0.0 | AI26: =L26+T26+AB26 -> 0 | AJ26: =SUM(AJ21:AJ25) -> 42.0 | AK26: =N26+V26+AD26 -> € 4,110.00 | AM26: =SUM(AM21:AM25) -> 0 | AN26: =SUM(AN21:AN25) -> 0 | AO26: =AM26-AN26 -> 0 | AQ26: =SUM(AQ21:AQ25) -> 0 | AR26: =SUM(AR21:AR25) -> 0 | AS26: =AQ26-AR26 -> 0 | AU26: =SUM(AU21:AU25) -> € 4,110.00 | AV26: =SUM(AV21:AV25) -> 0 | AW26: =SUM(AW21:AW25) -> € 4,110.00
B27: DC-2 | D27: =F7+1 -> 2016-02-21 | E27: =E28+E39 -> 81.0 | F27: =F39 -> 2016-05-18 | H27: =H38+H49 -> 22.0 | I27: =I38+I49 -> 0.0 | K27: =K38+K49 -> € 1,210.00 | L27: =L38+L49 -> 0 | M27: =M38+M49 -> 22.0 | N27: =N38+N49 -> € 1,210.00 | P27: =P38+P49 -> 0.0 | Q27: =Q38+Q49 -> 0.0 | S27: =S38+S49 -> 0 | T27: =T38+T49 -> 0 | U27: =U38+U49 -> 0.0 | V27: =V38+V49 -> 0 | X27: =X38+X49 -> 73.0 | Y27: =Y38+Y49 -> 0.0 | AA27: =AA38+AA49 -> € 7,300.00 | AB27: =AB38+AB49 -> 0 | AC27: =AC38+AC49 -> 73.0 | AD27: =AD38+AD49 -> € 7,300.00 | AM27: =AM38+AM49 -> 0 | AN27: =AN38+AN49 -> 0 | AQ27: =AQ38+AQ49 -> 0 | AR27: =AR38+AR49 -> 0 | AS27: =AS38+AS49 -> 0 | AU27: =AQ27+AM27+Z27+S27+K27 -> € 1,210.00 | AV27: =AR27+AN27+AA27+T27+L27 -> € 7,300.00 | AW27: =AS27+AO27+AB27+U27+M27 -> € 22.00
B28: Deliverable-3 | D28: =F20 -> 2016-02-27 | E28: =E38 -> 58.0 | F28: =E28+D28 -> 2016-04-25
A29: 16 | B29: Hardware | C29: 0 | D29: 2016-05-27 | E29: 1.0 | F29: =D29+E29 -> 2016-05-28 | H29: 0.0 | I29: 0.0 | J29: =Resouce!$C$5 -> € 55.00 | K29: =J29*H29 -> 0 | L29: =I29*J29 -> 0 | M29: =H29-I29 -> 0.0 | N29: =K29-L29 -> 0 | P29: 0.0 | Q29: 0.0 | R29: =Resouce!$C$5 -> € 55.00 | S29: =R29*P29 -> 0 | T29: =Q29*R29 -> 0 | U29: =P29-Q29 -> 0.0 | V29: =S29-T29 -> 0 | X29: 5.0 | Y29: 0.0 | Z29: =Resouce!$C$7 -> € 100.00 | AA29: =Z29*X29 -> € 500.00 | AB29: =Y29*Z29 -> 0 | AC29: =X29-Y29 -> 5.0 | AD29: =AA29-AB29 -> € 500.00 | AF29: =H29+P29+X29 -> 5.0 | AG29: =K29+S29+AA29 -> € 500.00 | AH29: =I29+Q29+Y29 -> 0.0 | AI29: =L29+T29+AB29 -> 0 | AJ29: =M29+U29+AC29 -> 5.0 | AK29: =N29+V29+AD29 -> € 500.00 | AM29: 0 | AN29: 0 | AO29: =AM29-AN29 -> 0 | AQ29: 0 | AR29: 0 | AS29: =AQ29-AR29 -> 0 | AU29: =AG29+AM29+AQ29 -> € 500.00 | AV29: =AI29+AN29+AR29 -> 0 | AW29: =AU29-AV29 -> € 500.00
A30: =A29+1 -> 17 | B30: Software | C30: 0 | D30: =F29 -> 2016-05-28 | E30: 5.0 | F30: =D30+E30 -> 2016-06-02 | H30: 0.0 | I30: 0.0 | J30: =Resouce!$C$5 -> € 55.00 | K30: =J30*H30 -> 0 | L30: =I30*J30 -> 0 | M30: =H30-I30 -> 0.0 | N30: =K30-L30 -> 0 | P30: 0.0 | Q30: 0.0 | R30: =Resouce!$C$5 -> € 55.00 | S30: =R30*P30 -> 0 | T30: =Q30*R30 -> 0 | U30: =P30-Q30 -> 0.0 | V30: =S30-T30 -> 0 | X30: 3.0 | Y30: 0.0 | Z30: =Resouce!$C$7 -> € 100.00 | AA30: =Z30*X30 -> € 300.00 | AB30: =Y30*Z30 -> 0 | AC30: =X30-Y30 -> 3.0 | AD30: =AA30-AB30 -> € 300.00 | AF30: 3.0 | AG30: € 300.00 | AH30: 0.0 | AI30: 0 | AJ30: 3.0 | AK30: € 300.00 | AM30: 0 | AN30: 0 | AO30: =AM30-AN30 -> 0 | AQ30: 0 | AR30: 0 | AS30: =AQ30-AR30 -> 0 | AU30: =AG30+AM30+AQ30 -> € 300.00 | AV30: =AI30+AN30+AR30 -> 0 | AW30: =AU30-AV30 -> € 300.00
A31: =A30+1 -> 18 | B31: Interface | C31: 0 | D31: =F30 -> 2016-06-02 | E31: 12.0 | F31: 2016-06-14 | H31: 1.0 | I31: 0.0 | J31: =Resouce!$C$5 -> € 55.00 | K31: € 55.00 | L31: 0 | M31: 1.0 | N31: € 55.00 | P31: 0.0 | Q31: 0.0 | R31: =Resouce!$C$5 -> € 55.00 | S31: 0 | T31: 0 | U31: 0.0 | V31: 0 | X31: 6.0 | Y31: 0.0 | Z31: =Resouce!$C$7 -> € 100.00 | AA31: € 600.00 | AB31: 0 | AC31: 6.0 | AD31: € 600.00 | AF31: 7.0 | AG31: € 655.00 | AH31: 0.0 | AI31: 0 | AJ31: 7.0 | AK31: € 655.00 | AM31: 0 | AN31: 0 | AO31: 0 | AQ31: 0 | AR31: 0 | AS31: 0 | AU31: € 655.00 | AV31: 0 | AW31: € 655.00
A32: 19 | B32: Development | C32: 0 | D32: 2016-06-14 | E32: 23.0 | F32: 2016-07-07 | H32: 1.0 | I32: 0.0 | J32: =Resouce!$C$5 -> € 55.00 | K32: € 55.00 | L32: 0 | M32: 1.0 | N32: € 55.00 | P32: 0.0 | Q32: 0.0 | R32: =Resouce!$C$5 -> € 55.00 | S32: 0 | T32: 0 | U32: 0.0 | V32: 0 | X32: 5.0 | Y32: 0.0 | Z32: =Resouce!$C$7 -> € 100.00 | AA32: € 500.00 | AB32: 0 | AC32: 5.0 | AD32: € 500.00 | AF32: 6.0 | AG32: € 555.00 | AH32: 0.0 | AI32: 0 | AJ32: 6.0 | AK32: € 555.00 | AM32: 0 | AN32: 0 | AO32: 0 | AQ32: 0 | AR32: 0 | AS32: 0 | AU32: € 555.00 | AV32: 0 | AW32: € 555.00
A33: 20 | B33: Testing | C33: 0 | D33: 2016-07-07 | E33: 5.0 | F33: 2016-07-12 | H33: 1.0 | I33: 0.0 | J33: =Resouce!$C$5 -> € 55.00 | K33: € 55.00 | L33: 0 | M33: 1.0 | N33: € 55.00 | P33: 0.0 | Q33: 0.0 | R33: =Resouce!$C$5 -> € 55.00 | S33: 0 | T33: 0 | U33: 0.0 | V33: 0 | X33: 4.0 | Y33: 0.0 | Z33: =Resouce!$C$7 -> € 100.00 | AA33: € 400.00 | AB33: 0 | AC33: 4.0 | AD33: € 400.00 | AF33: 5.0 | AG33: € 455.00 | AH33: 0.0 | AI33: 0 | AJ33: 5.0 | AK33: € 455.00 | AM33: 0 | AN33: 0 | AO33: 0 | AQ33: 0 | AR33: 0 | AS33: 0 | AU33: € 455.00 | AV33: 0 | AW33: € 455.00
A34: 21 | B34: Migration | C34: 0 | D34: 2016-07-12 | E34: 5.0 | F34: 2016-07-17 | H34: 0.0 | I34: 0.0 | J34: =Resouce!$C$5 -> € 55.00 | K34: 0 | L34: 0 | M34: 0.0 | N34: 0 | P34: 0.0 | Q34: 0.0 | R34: =Resouce!$C$5 -> € 55.00 | S34: 0 | T34: 0 | U34: 0.0 | V34: 0 | X34: 3.0 | Y34: 0.0 | Z34: =Resouce!$C$7 -> € 100.00 | AA34: € 300.00 | AB34: 0 | AC34: 3.0 | AD34: € 300.00 | AF34: 3.0 | AG34: € 300.00 | AH34: 0.0 | AI34: 0 | AJ34: 3.0 | AK34: € 300.00 | AM34: 0 | AN34: 0 | AO34: 0 | AQ34: 0 | AR34: 0 | AS34: 0 | AU34: € 300.00 | AV34: 0 | AW34: € 300.00
A35: 22 | B35: Implementation | C35: 0 | D35: 2016-07-17 | E35: 3.0 | F35: 2016-07-20 | H35: 1.0 | I35: 0.0 | J35: =Resouce!$C$5 -> € 55.00 | K35: € 55.00 | L35: 0 | M35: 1.0 | N35: € 55.00 | P35: 0.0 | Q35: 0.0 | R35: =Resouce!$C$5 -> € 55.00 | S35: 0 | T35: 0 | U35: 0.0 | V35: 0 | X35: 2.0 | Y35: 0.0 | Z35: =Resouce!$C$7 -> € 100.00 | AA35: € 200.00 | AB35: 0 | AC35: 2.0 | AD35: € 200.00 | AF35: 3.0 | AG35: € 255.00 | AH35: 0.0 | AI35: 0 | AJ35: 3.0 | AK35: € 255.00 | AM35: 0 | AN35: 0 | AO35: 0 | AQ35: 0 | AR35: 0 | AS35: 0 | AU35: € 255.00 | AV35: 0 | AW35: € 255.00
A36: 23 | B36: PMO Cost | C36: 0 | D36: 2016-07-20 | E36: 2.0 | F36: 2016-07-22 | H36: 0.0 | I36: 0.0 | J36: =Resouce!$C$5 -> € 55.00 | K36: 0 | L36: 0 | M36: 0.0 | N36: 0 | P36: 0.0 | Q36: 0.0 | R36: =Resouce!$C$5 -> € 55.00 | S36: 0 | T36: 0 | U36: 0.0 | V36: 0 | X36: 6.0 | Y36: 0.0 | Z36: =Resouce!$C$7 -> € 100.00 | AA36: € 600.00 | AB36: 0 | AC36: 6.0 | AD36: € 600.00 | AF36: 6.0 | AG36: € 600.00 | AH36: 0.0 | AI36: 0 | AJ36: 6.0 | AK36: € 600.00 | AM36: 0 | AN36: 0 | AO36: 0 | AQ36: 0 | AR36: 0 | AS36: 0 | AU36: € 600.00 | AV36: 0 | AW36: € 600.00
A37: 24 | B37: Process | C37: 0 | D37: 2016-07-22 | E37: 2.0 | F37: 2016-07-24 | H37: 0.0 | I37: 0.0 | J37: =Resouce!$C$5 -> € 55.00 | K37: 0 | L37: 0 | M37: 0.0 | N37: 0 | P37: 0.0 | Q37: 0.0 | R37: =Resouce!$C$5 -> € 55.00 | S37: 0 | T37: 0 | U37: 0.0 | V37: 0 | X37: 2.0 | Y37: 0.0 | Z37: =Resouce!$C$7 -> € 100.00 | AA37: € 200.00 | AB37: 0 | AC37: 2.0 | AD37: € 200.00 | AF37: 2.0 | AG37: € 200.00 | AH37: 0.0 | AI37: 0 | AJ37: 2.0 | AK37: € 200.00 | AM37: 0 | AN37: 0 | AO37: 0 | AQ37: 0 | AR37: 0 | AS37: 0 | AU37: € 200.00 | AV37: 0 | AW37: € 200.00
B38: Sub Total | E38: =SUM(E29:E37) -> 58.0 | H38: =SUM(H29:H37) -> 4.0 | I38: =SUM(I29:I37) -> 0.0 | K38: =SUM(K29:K37) -> € 220.00 | L38: =SUM(L29:L37) -> 0 | M38: =SUM(M29:M37) -> 4.0 | N38: =SUM(N29:N37) -> € 220.00 | P38: =SUM(P29:P37) -> 0.0 | Q38: =SUM(Q29:Q37) -> 0.0 | S38: =SUM(S29:S37) -> 0 | T38: =SUM(T29:T37) -> 0 | U38: =SUM(U29:U37) -> 0.0 | V38: =SUM(V29:V37) -> 0 | X38: =SUM(X29:X37) -> 36.0 | Y38: =SUM(Y29:Y37) -> 0.0 | AA38: =SUM(AA29:AA37) -> € 3,600.00 | AB38: =SUM(AB29:AB37) -> 0 | AC38: =SUM(AC29:AC37) -> 36.0 | AD38: =SUM(AD29:AD37) -> € 3,600.00 | AF38: =SUM(AF29:AF37) -> 40.0 | AG38: =K38+S38+AA38 -> € 3,820.00 | AH38: =SUM(AH29:AH37) -> 0.0 | AI38: =L38+T38+AB38 -> 0 | AJ38: =SUM(AJ29:AJ37) -> 40.0 | AK38: =N38+V38+AD38 -> € 3,820.00 | AM38: =SUM(AM29:AM37) -> 0 | AN38: =SUM(AN29:AN37) -> 0 | AO38: =AM38-AN38 -> 0 | AQ38: =SUM(AQ29:AQ37) -> 0 | AR38: =SUM(AR29:AR37) -> 0 | AS38: =AQ38-AR38 -> 0 | AU38: =SUM(AU29:AU37) -> € 3,820.00 | AV38: =SUM(AV29:AV37) -> 0 | AW38: =SUM(AW29:AW37) -> € 3,820.00
B39: Deliverable-4 | D39: =F28 -> 2016-04-25 | E39: =E49 -> 23.0 | F39: =E39+D39 -> 2016-05-18
A40: =A37+1 -> 25 | B40: Hardware | C40: 0 | D40: =F37 -> 2016-07-24 | E40: 1.0 | F40: =D40+E40 -> 2016-07-25 | H40: 0.0 | I40: 0.0 | J40: =Resouce!$C$5 -> € 55.00 | K40: =J40*H40 -> 0 | L40: =I40*J40 -> 0 | M40: =H40-I40 -> 0.0 | N40: =K40-L40 -> 0 | P40: 0.0 | Q40: 0.0 | R40: =Resouce!$C$5 -> € 55.00 | S40: =R40*P40 -> 0 | T40: =Q40*R40 -> 0 | U40: =P40-Q40 -> 0.0 | V40: =S40-T40 -> 0 | X40: 2.0 | Y40: 0.0 | Z40: =Resouce!$C$7 -> € 100.00 | AA40: =Z40*X40 -> € 200.00 | AB40: =Y40*Z40 -> 0 | AC40: =X40-Y40 -> 2.0 | AD40: =AA40-AB40 -> € 200.00 | AF40: =H40+P40+X40 -> 2.0 | AG40: =K40+S40+AA40 -> € 200.00 | AH40: =I40+Q40+Y40 -> 0.0 | AI40: =L40+T40+AB40 -> 0 | AJ40: =M40+U40+AC40 -> 2.0 | AK40: =N40+V40+AD40 -> € 200.00 | AM40: 0 | AN40: 0 | AO40: =AM40-AN40 -> 0 | AQ40: 0 | AR40: 0 | AS40: =AQ40-AR40 -> 0 | AU40: =AG40+AM40+AQ40 -> € 200.00 | AV40: =AI40+AN40+AR40 -> 0 | AW40: =AU40-AV40 -> € 200.00
A41: =A40+1 -> 26 | B41: Software | C41: 1 | D41: =F40 -> 2016-07-25 | E41: 3.0 | F41: =D41+E41 -> 2016-07-28 | H41: 0.0 | I41: 0.0 | J41: =Resouce!$C$5 -> € 55.00 | K41: =J41*H41 -> 0 | L41: =I41*J41 -> 0 | M41: =H41-I41 -> 0.0 | N41: =K41-L41 -> 0 | P41: 0.0 | Q41: 0.0 | R41: =Resouce!$C$5 -> € 55.00 | S41: =R41*P41 -> 0 | T41: =Q41*R41 -> 0 | U41: =P41-Q41 -> 0.0 | V41: =S41-T41 -> 0 | X41: 6.0 | Y41: 0.0 | Z41: =Resouce!$C$7 -> € 100.00 | AA41: =Z41*X41 -> € 600.00 | AB41: =Y41*Z41 -> 0 | AC41: =X41-Y41 -> 6.0 | AD41: =AA41-AB41 -> € 600.00 | AF41: 6.0 | AG41: € 600.00 | AH41: 0.0 | AI41: 0 | AJ41: 6.0 | AK41: € 600.00 | AM41: 0 | AN41: 0 | AO41: =AM41-AN41 -> 0 | AQ41: 0 | AR41: 0 | AS41: =AQ41-AR41 -> 0 | AU41: =AG41+AM41+AQ41 -> € 600.00 | AV41: =AI41+AN41+AR41 -> 0 | AW41: =AU41-AV41 -> € 600.00
A42: =A41+1 -> 27 | B42: Interface | C42: 2 | D42: =F41 -> 2016-07-28 | E42: 4.0 | F42: 2016-08-01 | H42: 0.0 | I42: 0.0 | J42: =Resouce!$C$5 -> € 55.00 | K42: 0 | L42: 0 | M42: 0.0 | N42: 0 | P42: 0.0 | Q42: 0.0 | R42: =Resouce!$C$5 -> € 55.00 | S42: 0 | T42: 0 | U42: 0.0 | V42: 0 | X42: 4.0 | Y42: 0.0 | Z42: =Resouce!$C$7 -> € 100.00 | AA42: € 400.00 | AB42: 0 | AC42: 4.0 | AD42: € 400.00 | AF42: 4.0 | AG42: € 400.00 | AH42: 0.0 | AI42: 0 | AJ42: 4.0 | AK42: € 400.00 | AM42: 0 | AN42: 0 | AO42: 0 | AQ42: 0 | AR42: 0 | AS42: 0 | AU42: € 400.00 | AV42: 0 | AW42: € 400.00
A43: 28 | B43: Development | C43: 3 | D43: 2016-08-01 | E43: 3.0 | F43: 2016-08-04 | H43: 3.0 | I43: 0.0 | J43: =Resouce!$C$5 -> € 55.00 | K43: € 165.00 | L43: 0 | M43: 3.0 | N43: € 165.00 | P43: 0.0 | Q43: 0.0 | R43: =Resouce!$C$5 -> € 55.00 | S43: 0 | T43: 0 | U43: 0.0 | V43: 0 | X43: 5.0 | Y43: 0.0 | Z43: =Resouce!$C$7 -> € 100.00 | AA43: € 500.00 | AB43: 0 | AC43: 5.0 | AD43: € 500.00 | AF43: 8.0 | AG43: € 665.00 | AH43: 0.0 | AI43: 0 | AJ43: 8.0 | AK43: € 665.00 | AM43: 0 | AN43: 0 | AO43: 0 | AQ43: 0 | AR43: 0 | AS43: 0 | AU43: € 665.00 | AV43: 0 | AW43: € 665.00
A44: 29 | B44: Testing | C44: 4 | D44: 2016-08-04 | E44: 4.0 | F44: 2016-08-08 | H44: 5.0 | I44: 0.0 | J44: =Resouce!$C$5 -> € 55.00 | K44: € 275.00 | L44: 0 | M44: 5.0 | N44: € 275.00 | P44: 0.0 | Q44: 0.0 | R44: =Resouce!$C$5 -> € 55.00 | S44: 0 | T44: 0 | U44: 0.0 | V44: 0 | X44: 4.0 | Y44: 0.0 | Z44: =Resouce!$C$7 -> € 100.00 | AA44: € 400.00 | AB44: 0 | AC44: 4.0 | AD44: € 400.00 | AF44: 9.0 | AG44: € 675.00 | AH44: 0.0 | AI44: 0 | AJ44: 9.0 | AK44: € 675.00 | AM44: 0 | AN44: 0 | AO44: 0 | AQ44: 0 | AR44: 0 | AS44: 0 | AU44: € 675.00 | AV44: 0 | AW44: € 675.00
A45: 30 | B45: Migration | C45: 5 | D45: 2016-08-08 | E45: 3.0 | F45: 2016-08-11 | H45: 4.0 | I45: 0.0 | J45: =Resouce!$C$5 -> € 55.00 | K45: € 220.00 | L45: 0 | M45: 4.0 | N45: € 220.00 | P45: 0.0 | Q45: 0.0 | R45: =Resouce!$C$5 -> € 55.00 | S45: 0 | T45: 0 | U45: 0.0 | V45: 0 | X45: 3.0 | Y45: 0.0 | Z45: =Resouce!$C$7 -> € 100.00 | AA45: € 300.00 | AB45: 0 | AC45: 3.0 | AD45: € 300.00 | AF45: 7.0 | AG45: € 520.00 | AH45: 0.0 | AI45: 0 | AJ45: 7.0 | AK45: € 520.00 | AM45: 0 | AN45: 0 | AO45: 0 | AQ45: 0 | AR45: 0 | AS45: 0 | AU45: € 520.00 | AV45: 0 | AW45: € 520.00
A46: 31 | B46: Implementation | C46: 6 | D46: 2016-08-11 | E46: 2.0 | F46: 2016-08-13 | H46: 3.0 | I46: 0.0 | J46: =Resouce!$C$5 -> € 55.00 | K46: € 165.00 | L46: 0 | M46: 3.0 | N46: € 165.00 | P46: 0.0 | Q46: 0.0 | R46: =Resouce!$C$5 -> € 55.00 | S46: 0 | T46: 0 | U46: 0.0 | V46: 0 | X46: 4.0 | Y46: 0.0 | Z46: =Resouce!$C$7 -> € 100.00 | AA46: € 400.00 | AB46: 0 | AC46: 4.0 | AD46: € 400.00 | AF46: 7.0 | AG46: € 565.00 | AH46: 0.0 | AI46: 0 | AJ46: 7.0 | AK46: € 565.00 | AM46: 0 | AN46: 0 | AO46: 0 | AQ46: 0 | AR46: 0 | AS46: 0 | AU46: € 565.00 | AV46: 0 | AW46: € 565.00
A47: 32 | B47: PMO Cost | C47: 7 | D47: 2016-08-13 | E47: 3.0 | F47: 2016-08-16 | H47: 3.0 | I47: 0.0 | J47: =Resouce!$C$5 -> € 55.00 | K47: € 165.00 | L47: 0 | M47: 3.0 | N47: € 165.00 | P47: 0.0 | Q47: 0.0 | R47: =Resouce!$C$5 -> € 55.00 | S47: 0 | T47: 0 | U47: 0.0 | V47: 0 | X47: 5.0 | Y47: 0.0 | Z47: =Resouce!$C$7 -> € 100.00 | AA47: € 500.00 | AB47: 0 | AC47: 5.0 | AD47: € 500.00 | AF47: 8.0 | AG47: € 665.00 | AH47: 0.0 | AI47: 0 | AJ47: 8.0 | AK47: € 665.00 | AM47: 0 | AN47: 0 | AO47: 0 | AQ47: 0 | AR47: 0 | AS47: 0 | AU47: € 665.00 | AV47: 0 | AW47: € 665.00
A48: 33 | B48: Process | C48: 8 | D48: 2016-08-16 | E48: 0.0 | F48: 2016-08-16 | H48: 0.0 | I48: 0.0 | J48: =Resouce!$C$5 -> € 55.00 | K48: 0 | L48: 0 | M48: 0.0 | N48: 0 | P48: 0.0 | Q48: 0.0 | R48: =Resouce!$C$5 -> € 55.00 | S48: 0 | T48: 0 | U48: 0.0 | V48: 0 | X48: 4.0 | Y48: 0.0 | Z48: =Resouce!$C$7 -> € 100.00 | AA48: € 400.00 | AB48: 0 | AC48: 4.0 | AD48: € 400.00 | AF48: 4.0 | AG48: € 400.00 | AH48: 0.0 | AI48: 0 | AJ48: 4.0 | AK48: € 400.00 | AM48: 0 | AN48: 0 | AO48: 0 | AQ48: 0 | AR48: 0 | AS48: 0 | AU48: € 400.00 | AV48: 0 | AW48: € 400.00
B49: Sub Total | E49: =SUM(E40:E48) -> 23.0 | H49: =SUM(H40:H48) -> 18.0 | I49: =SUM(I40:I48) -> 0.0 | K49: =SUM(K40:K48) -> € 990.00 | L49: =SUM(L40:L48) -> 0 | M49: =SUM(M40:M48) -> 18.0 | N49: =SUM(N40:N48) -> € 990.00 | P49: =SUM(P40:P48) -> 0.0 | Q49: =SUM(Q40:Q48) -> 0.0 | S49: =SUM(S40:S48) -> 0 | T49: =SUM(T40:T48) -> 0 | U49: =SUM(U40:U48) -> 0.0 | V49: =SUM(V40:V48) -> 0 | X49: =SUM(X40:X48) -> 37.0 | Y49: =SUM(Y40:Y48) -> 0.0 | AA49: =SUM(AA40:AA48) -> € 3,700.00 | AB49: =SUM(AB40:AB48) -> 0 | AC49: =SUM(AC40:AC48) -> 37.0 | AD49: =SUM(AD40:AD48) -> € 3,700.00 | AF49: =SUM(AF40:AF48) -> 55.0 | AG49: =K49+S49+AA49 -> € 4,690.00 | AH49: =SUM(AH40:AH48) -> 0.0 | AI49: =L49+T49+AB49 -> 0 | AJ49: =SUM(AJ40:AJ48) -> 55.0 | AK49: =N49+V49+AD49 -> € 4,690.00 | AM49: =SUM(AM40:AM48) -> 0 | AN49: =SUM(AN40:AN48) -> 0 | AO49: =AM49-AN49 -> 0 | AQ49: =SUM(AQ40:AQ48) -> 0 | AR49: =SUM(AR40:AR48) -> 0 | AS49: =AQ49-AR49 -> 0 | AU49: =SUM(AU40:AU48) -> € 4,690.00 | AV49: =SUM(AV40:AV48) -> 0 | AW49: =SUM(AW40:AW48) -> € 4,690.00

Sheet Total Overview
B2: Project Part | C2: Cost
C3: Plannned | D3: Actuals | E3: Variant
B4: Resources | C4: ='Project Planning'!AG6 -> € 15,570.00 | D4: ='Project Planning'!AI6 -> € 2,400.00 | E4: ='Project Planning'!AK6 -> € 13,170.00
B5: Fixed Cost | C5: ='Project Planning'!AM6 -> 0 | D5: ='Project Planning'!AN6 -> 0 | E5: ='Project Planning'!AO6 -> 0
B6: Operational Cost | C6: ='Project Planning'!AQ6 -> 0 | D6: ='Project Planning'!AR6 -> 0 | E6: ='Project Planning'!AS6 -> 0
B7: Total Project Cost | C7: =SUM(C4:C6) -> € 15,570.00 | D7: =SUM(D4:D6) -> € 2,400.00 | E7: € 13,170.00

Sheet Changes
B2: Change | C2: Cost | G2: Request Date | H2: 2016-01-01
C3: Plannned | D3: Actuals | E3: Variant | G3: Approval Date | H3: 2016-01-18
B4: Resources | C4: 0 | D4: 0 | E4: =C4-D4 -> 0 | G4: Reference | H4: 12345
B5: Fixed Cost | C5: 0 | D5: 0 | E5: =C5-D5 -> 0
B6: Operational Cost | C6: 0 | D6: 0 | E6: 0
B7: Total Change Cost | C7: =SUM(C4:C6) -> 0 | D7: =SUM(D4:D6) -> 0 | E7: 0
B9: Change | C9: Cost | G9: Request Date | H9: 2016-01-01
C10: Plannned | D10: Actuals | E10: Variant | G10: Approval Date | H10: 2016-01-18
B11: Resources | C11: 0 | D11: 0 | E11: =C11-D11 -> 0 | G11: Reference | H11: 12345
B12: Fixed Cost | C12: 0 | D12: 0 | E12: =C12-D12 -> 0
B13: Operational Cost | C13: 0 | D13: 0 | E13: 0
B14: Total Change Cost | C14: =SUM(C11:C13) -> 0 | D14: =SUM(D11:D13) -> 0 | E14: 0
B16: Change | C16: Cost | G16: Request Date | H16: 2016-01-01
C17: Plannned | D17: Actuals | E17: Variant | G17: Approval Date | H17: 2016-01-18
B18: Resources | C18: 0 | D18: 0 | E18: =C18-D18 -> 0 | G18: Reference | H18: 12345
B19: Fixed Cost | C19: 0 | D19: 0 | E19: =C19-D19 -> 0
B20: Operational Cost | C20: 0 | D20: 0 | E20: 0
B21: Total Change Cost | C21: =SUM(C18:C20) -> 0 | D21: 0 | E21: 0
B23: Change | C23: Cost | G23: Request Date | H23: 2016-01-01
C24: Plannned | D24: Actuals | E24: Variant | G24: Approval Date | H24: 2016-01-18
B25: Resources | C25: 0 | D25: 0 | E25: =C25-D25 -> 0 | G25: Reference | H25: 12345
B26: Fixed Cost | C26: 0 | D26: 0 | E26: =C26-D26 -> 0
B27: Operational Cost | C27: 0 | D27: 0 | E27: 0
B28: Total Change Cost | C28: =SUM(C25:C27) -> 0 | D28: =SUM(D25:D27) -> 0 | E28: 0
B30: Change | C30: Cost | G30: Request Date | H30: 2016-01-01
C31: Plannned | D31: Actuals | E31: Variant | G31: Approval Date | H31: 2016-01-18
B32: Resources | C32: 0 | D32: 0 | E32: =C32-D32 -> 0 | G32: Reference | H32: 12345
B33: Fixed Cost | C33: 0 | D33: 0 | E33: =C33-D33 -> 0
B34: Operational Cost | C34: 0 | D34: 0 | E34: 0
B35: Total Change Cost | C35: =SUM(C32:C34) -> 0 | D35: =SUM(D32:D34) -> 0 | E35: 0
B37: Total Change Cost | C37: Cost
C38: Plannned | D38: Actuals | E38: Variant
B39: Total Resources | C39: =C32+C25+C18+C11+C4 -> 0 | D39: 0 | E39: =C39-D39 -> 0
B40: Total Fixed Cost | C40: 0 | D40: 0 | E40: =C40-D40 -> 0
B41: Total Operational Cost | C41: 0 | D41: 0 | E41: 0
B42: Total Change Cost | C42: 0 | D42: 0 | E42: 0
B44: Project Part | C44: Cost
C45: Plannned | D45: Actuals | E45: Variant
B46: Resources | C46: ='Total Overview'!C4 -> € 15,570.00 | D46: ='Total Overview'!D4 -> € 2,400.00 | E46: ='Total Overview'!E4 -> € 13,170.00
B47: Fixed Cost | C47: ='Total Overview'!C5 -> 0 | D47: ='Total Overview'!D5 -> 0 | E47: ='Total Overview'!E5 -> 0
B48: Operational Cost | C48: ='Total Overview'!C6 -> 0 | D48: ='Total Overview'!D6 -> 0 | E48: ='Total Overview'!E6 -> 0
B49: Total Project Cost | C49: =SUM(C46:C48) -> € 15,570.00 | D49: =SUM(D46:D48) -> € 2,400.00 | E49: € 13,170.00
B51: Total General | C51: =C42+C49 -> € 15,570.00 | D51: =D42+D49 -> € 2,400.00 | E51: € 13,170.00
